[Event "4NCL Div 1 2024-25"]
[Site "England"]
[Date "2025.02.15"]
[Round "5.19"]
[White "Czopor, Maciej"]
[Black "Ansell, Simon T"]
[Result "1/2-1/2"]
[Annotator "ChessBase"]
[ECO "B30"]
[WhiteElo "2383"]
[BlackElo "2323"]
[PlyCount "67"]
[EventDate "2024.11.23"]
[EventType "team-tourn"]
[EventCountry "ENG"]
[SourceTitle "playchess.com"]
[Source "ChessBase"]
[SourceQuality "1"]
[TimeControl "40/6000+30:3000+30"]

1. e4 {[%emt 0:10:03]} c5 {[%emt 0:10:17]} 2. Nf3 {[%emt 0:00:09]} Nc6 {[%emt 0:00:16]} 3. Bc4 {[%emt 0:00:04]} e6 {[%emt 0:08:40]} 4. O-O {[%emt 0:00:05]} a6 {[%emt 0:03:46]} 5. Re1 {[%emt 0:00:11]} b5 {[%emt 0:01:25]} 6. Bf1 {[%emt 0:00:05]} Bb7 {[%emt 0:08:02]} 7. c3 {[%emt 0:06:30]} Nf6 {[%emt 0:05:02]} 8. a4 {[%emt 0:10:59]} b4 {[%emt 0:22:30]} 9. d4 {[%emt 0:01:04]} cxd4 {[%emt 0:03:25]} 10. cxd4 {[%emt 0:04:04]} d5 {[%emt 0:00:13]} 11. e5 {[%emt 0:00:13]} Nd7 {[%emt 0:00:23]} 12. h4 {[%emt 0:24:55]} h6 {[%emt 0:02:47]} 13. Nbd2 {[%emt 0:05:20]} Be7 {[%emt 0:03:23]} 14. h5 {[%emt 0:00:11]} Qb6 {[%emt 0:02:43]} 15. Nb3 {[%emt 0:00:10]} a5 {[%emt 0:00:08]} 16. Nh2 {[%emt 0:07:02]} O-O-O {[%emt 0:02:38]} 17. Be3 {[%emt 0:10:09]} Kb8 {[%emt 0:02:07]} 18. Rc1 {[%emt 0:03:55]} Ba6 {[%emt 0:02:54]} 19. Qg4 {[%emt 0:03:28]} Rhg8 {[%emt 0:04:21]} 20. Bxa6 {[%emt 0:08:00]} Qxa6 {[%emt 0:00:04]} 21. Qe2 {[%emt 0:00:03]} Qxe2 {[%emt 0:05:17]} 22. Rxe2 {[%emt 0:00:03]} Rc8 {[%emt 0:05:21]} 23. Rec2 {[%emt 0:00:03]} Na7 {[%emt 0:00:04]} 24. Nxa5 {[%emt 0:03:29]} Rxc2 {[%emt 0:00:06]} 25. Rxc2 {[%emt 0:00:02]} Rc8 {[%emt 0:00:06]} 26. Rxc8+ {[%emt 0:01:00]} Kxc8 {[%emt 0:00:15]} 27. Ng4 {[%emt 0:03:32]} Bf8 {[%emt 0:05:43]} 28. Nb3 {[%emt 0:00:41]} Nb6 {[%emt 0:02:55]} 29. Nc5 {[%emt 0:00:42]} Nc4 {[%emt 0:00:16]} 30. Nd3 {[%emt 0:00:36]} b3 {[%emt 0:03:39]} 31. Kf1 {[%emt 0:05:01]} Nc6 {[%emt 0:02:01]} 32. Ke2 {[%emt 0:00:33]} Kc7 {[%emt 0:00:59]} 33. Nc1 {[%emt 0:01:36]} Nxb2 {[%emt 0:01:04]} 34. Nxb3 {[%emt 0:00:39]} 1/2-1/2

[Event "4NCL Div 1 2024-25"]
[Site "England"]
[Date "2025.02.15"]
[Round "5.20"]
[White "Bates, Richard A"]
[Black "Golding, Alex"]
[Result "0-1"]
[Annotator "ChessBase"]
[ECO "E16"]
[WhiteElo "2315"]
[BlackElo "2404"]
[PlyCount "140"]
[EventDate "2024.11.23"]
[EventType "team-tourn"]
[EventCountry "ENG"]
[SourceTitle "playchess.com"]
[Source "ChessBase"]
[SourceQuality "1"]
[TimeControl "40/6000+30:3000+30"]

1. d4 {[%emt 0:10:17]} Nf6 {[%emt 0:10:40]} 2. Nf3 {[%emt 0:00:26]} e6 {[%emt 0:02:27]} 3. c4 {[%emt 0:00:07]} b6 {[%emt 0:02:31]} 4. g3 {[%emt 0:00:21]} Bb7 {[%emt 0:00:17]} 5. Bg2 {[%emt 0:00:06]} Bb4+ {[%emt 0:00:48]} 6. Bd2 {[%emt 0:00:15]} Bxd2+ {[%emt 0:00:55]} 7. Qxd2 {[%emt 0:01:05]} O-O {[%emt 0:00:40]} 8. Nc3 {[%emt 0:02:15]} d6 {[%emt 0:06:12]} 9. d5 {[%emt 0:12:31]} e5 {[%emt 0:04:01]} 10. O-O {[%emt 0:01:02]} Nbd7 {[%emt 0:06:29]} 11. e4 {[%emt 0:04:55]} Qe7 {[%emt 0:13:40]} 12. Ne1 {[%emt 0:03:53]} c6 {[%emt 0:14:11]} 13. dxc6 {[%emt 0:03:24]} Bxc6 {[%emt 0:00:43]} 14. Nc2 {[%emt 0:02:19]} Nc5 {[%emt 0:02:03]} 15. Rfe1 {[%emt 0:04:33]} a5 {[%emt 0:08:23]} 16. b3 {[%emt 0:13:59]} Rad8 {[%emt 0:11:42]} 17. f3 {[%emt 0:06:36]} Ne8 {[%emt 0:04:06]} 18. Ne3 {[%emt 0:01:25]} Ne6 {[%emt 0:03:39]} 19. Ncd5 {[%emt 0:07:32]} Bxd5 {[%emt 0:00:35]} 20. Nf5 {[%emt 0:06:16]} Qa7 {[%emt 0:01:55]} 21. cxd5 {[%emt 0:02:17]} Nc5 {[%emt 0:00:13]} 22. Qe3 {[%emt 0:04:46]} g6 {[%emt 0:01:57]} 23. Nh6+ {[%emt 0:00:10]} Kg7 {[%emt 0:00:28]} 24. Rab1 {[%emt 0:06:08]} Nf6 {[%emt 0:01:54]} 25. Rec1 {[%emt 0:07:00]} Ng8 {[%emt 0:01:13]} 26. Nxg8 {[%emt 0:00:16]} Kxg8 {[%emt 0:00:04]} 27. a3 {[%emt 0:00:20]} a4 {[%emt 0:01:53]} 28. b4 {[%emt 0:00:18]} Nb3 {[%emt 0:00:14]} 29. Rc3 {[%emt 0:01:35]} Rc8 {[%emt 0:06:04]} 30. Bf1 {[%emt 0:01:50]} Qd7 {[%emt 0:01:30]} 31. Bc4 {[%emt 0:04:48]} Nd4 {[%emt 0:00:04]} 32. Rbc1 {[%emt 0:00:21]} f5 {[%emt 0:00:21]} 33. Be2 {[%emt 0:01:40]} Rxc3 {[%emt 0:00:12]} 34. Rxc3 {[%emt 0:00:06]} f4 {[%emt 0:03:09]} 35. gxf4 {[%emt 0:01:04]} Rxf4 {[%emt 0:00:05]} 36. Qf2 {[%emt 0:01:28]} Qh3 {[%emt 0:01:04]} 37. Re3 {[%emt 0:01:00]} Qc8 {[%emt 0:01:06]} 38. Kg2 {[%emt 0:00:29]} Qc1 {[%emt 0:00:50]} 39. Rd3 {[%emt 0:00:17]} Rf7 {[%emt 0:00:49]} 40. Qe3 {[%emt 0:00:22]} Qxe3 {[%emt 0:00:24]} 41. Rxe3 {[%emt 0:50:05]} Rc7 {[%emt 0:50:14]} 42. Bd1 {[%emt 0:01:04]} b5 {[%emt 0:00:00]} 43. Kf2 {[%emt 0:00:00]} Rc1 {[%emt 0:00:00]} 44. Ke1 {[%emt 0:00:00]} Kg7 {[%emt 0:00:00]} 45. Kd2 {[%emt 0:00:00]} Ra1 {[%emt 0:00:00]} 46. Rc3 {[%emt 0:00:00]} Kf6 {[%emt 0:00:00]} 47. Rc7 {[%emt 0:00:00]} Ra2+ {[%emt 0:00:00]} 48. Kc1 {[%emt 0:00:00]} Rxa3 {[%emt 0:00:00]} 49. Rxh7 {[%emt 0:00:00]} Ra1+ {[%emt 0:00:00]} 50. Kd2 {[%emt 0:00:00]} Rb1 {[%emt 0:00:00]} 51. Rd7 {[%emt 0:00:00]} Rxb4 {[%emt 0:00:00]} 52. Rxd6+ {[%emt 0:00:00]} Ke7 {[%emt 0:00:00]} 53. Rxg6 {[%emt 0:00:00]} Rb2+ {[%emt 0:00:00]} 54. Kc1 {[%emt 0:00:00]} a3 {[%emt 0:00:00]} 55. Ra6 {[%emt 0:00:00]} b4 {[%emt 0:01:31]} 56. f4 {[%emt 0:00:00]} Ne2+ {[%emt 0:00:45]} 57. Bxe2 {[%emt 0:00:00]} Rxe2 {[%emt 0:00:04]} 58. fxe5 {[%emt 0:00:00]} a2 {[%emt 0:01:20]} 59. Ra7+ {[%emt 0:00:00]} Kf8 {[%emt 0:01:22]} 60. Ra8+ {[%emt 0:02:09]} Kg7 {[%emt 0:00:07]} 61. Ra7+ {[%emt 0:00:32]} Kh6 {[%emt 0:00:27]} 62. Ra6+ {[%emt 0:00:11]} Kh5 {[%emt 0:00:21]} 63. Kd1 {[%emt 0:02:29]} Rxh2 {[%emt 0:04:40]} 64. e6 {[%emt 0:00:22]} Kg6 {[%emt 0:00:08]} 65. d6 {[%emt 0:00:25]} b3 {[%emt 0:00:32]} 66. e7 {[%emt 0:02:57]} Kf7 {[%emt 0:00:06]} 67. Ra8 {[%emt 0:00:45]} a1=Q+ {[%emt 0:00:07]} 68. Rxa1 {[%emt 0:00:10]} Rh1+ {[%emt 0:00:03]} 69. Kd2 {[%emt 0:00:10]} Rxa1 {[%emt 0:00:06]} 70. Kc3 {[%emt 0:00:15]} Re1 {[%emt 0:00:22]} 0-1

[Event "4NCL Div 1 2024-25"]
[Site "England"]
[Date "2025.02.15"]
[Round "5.21"]
[White "Derakhshani, Borna"]
[Black "Ledger, Dave J"]
[Result "1-0"]
[Annotator "ChessBase"]
[ECO "C78"]
[WhiteElo "2355"]
[BlackElo "2191"]
[PlyCount "73"]
[EventDate "2024.11.23"]
[EventType "team-tourn"]
[EventCountry "ENG"]
[SourceTitle "playchess.com"]
[Source "ChessBase"]
[SourceQuality "1"]
[TimeControl "40/6000+30:3000+30"]

1. e4 {[%emt 0:10:25]} e5 {[%emt 0:10:11]} 2. Nf3 {[%emt 0:00:16]} Nc6 {[%emt 0:00:17]} 3. Bb5 {[%emt 0:00:12]} a6 {[%emt 0:01:05]} 4. Ba4 {[%emt 0:00:40]} Nf6 {[%emt 0:01:36]} 5. O-O {[%emt 0:00:12]} b5 {[%emt 0:00:37]} 6. Bb3 {[%emt 0:00:04]} Bc5 {[%emt 0:02:10]} 7. a4 {[%emt 0:00:17]} Bb7 {[%emt 0:01:56]} 8. c3 {[%emt 0:01:46]} d6 {[%emt 0:01:26]} 9. d4 {[%emt 0:01:37]} Bb6 {[%emt 0:00:39]} 10. Re1 {[%emt 0:01:40]} O-O {[%emt 0:01:26]} 11. Bg5 {[%emt 0:04:54]} h6 {[%emt 0:01:42]} 12. Bh4 {[%emt 0:00:07]} Qe7 {[%emt 0:01:51]} 13. Bd5 {[%emt 0:08:31]} Rab8 {[%emt 0:21:29]} 14. Na3 {[%emt 0:10:56]} g5 {[%emt 0:03:20]} 15. Bg3 {[%emt 0:06:26]} exd4 {[%emt 0:04:24]} 16. axb5 {[%emt 0:04:14]} axb5 {[%emt 0:00:38]} 17. Bxc6 {[%emt 0:05:24]} Bxc6 {[%emt 0:00:27]} 18. Nxd4 {[%emt 0:00:21]} Bd7 {[%emt 0:05:14]} 19. h4 {[%emt 0:25:38]} g4 {[%emt 0:10:10]} 20. e5 {[%emt 0:02:26]} dxe5 {[%emt 0:01:01]} 21. Rxe5 {[%emt 0:00:08]} Qd8 {[%emt 0:01:55]} 22. Qd2 {[%emt 0:01:06]} Kg7 {[%emt 0:02:53]} 23. Bf4 {[%emt 0:02:31]} Ng8 {[%emt 0:08:06]} 24. Rd5 {[%emt 0:05:05]} Qc8 {[%emt 0:08:31]} 25. Rh5 {[%emt 0:00:32]} Kg6 {[%emt 0:01:15]} 26. Bxh6 {[%emt 0:00:23]} f6 {[%emt 0:00:54]} 27. Rg5+ {[%emt 0:09:59]} Kxh6 {[%emt 0:01:17]} 28. Rxg8+ {[%emt 0:00:02]} Kh7 {[%emt 0:00:08]} 29. Rxf8 {[%emt 0:00:07]} Qxf8 {[%emt 0:00:06]} 30. Qd3+ {[%emt 0:00:20]} f5 {[%emt 0:02:20]} 31. Re1 {[%emt 0:02:54]} Rd8 {[%emt 0:02:30]} 32. Qg3 {[%emt 0:02:04]} Qf6 {[%emt 0:03:23]} 33. Qf4 {[%emt 0:01:54]} Rg8 {[%emt 0:02:45]} 34. Re5 {[%emt 0:00:56]} c6 {[%emt 0:02:00]} 35. Nxf5 {[%emt 0:00:53]} Bc7 {[%emt 0:01:09]} 36. Re7+ {[%emt 0:00:04]} Qxe7 {[%emt 0:00:13]} 37. Qh6# {[%emt 0:00:36]} 1-0

[Event "4NCL Div 1 2024-25"]
[Site "England"]
[Date "2025.02.15"]
[Round "5.22"]
[White "Duncan, Chris R"]
[Black "Balaji, Aaravamudhan"]
[Result "1/2-1/2"]
[Annotator "ChessBase"]
[ECO "E94"]
[WhiteElo "2167"]
[BlackElo "2377"]
[PlyCount "67"]
[EventDate "2024.11.23"]
[EventType "team-tourn"]
[EventCountry "ENG"]
[SourceTitle "playchess.com"]
[Source "ChessBase"]
[SourceQuality "1"]
[TimeControl "40/6000+30:3000+30"]

1. d4 {[%emt 0:10:03]} Nf6 {[%emt 0:10:10]} 2. c4 {[%emt 0:00:41]} g6 {[%emt 0:00:04]} 3. Nf3 {[%emt 0:00:06]} Bg7 {[%emt 0:00:04]} 4. Nc3 {[%emt 0:00:11]} O-O {[%emt 0:00:05]} 5. e4 {[%emt 0:00:13]} d6 {[%emt 0:00:04]} 6. Be2 {[%emt 0:00:09]} Nbd7 {[%emt 0:00:04]} 7. O-O {[%emt 0:00:48]} e5 {[%emt 0:00:11]} 8. Be3 {[%emt 0:01:27]} Ng4 {[%emt 0:00:09]} 9. Bg5 {[%emt 0:00:14]} f6 {[%emt 0:00:05]} 10. Bd2 {[%emt 0:01:39]} Nh6 {[%emt 0:00:13]} 11. Be3 {[%emt 0:01:27]} Nf7 {[%emt 0:02:37]} 12. Qc2 {[%emt 0:01:56]} Kh8 {[%emt 0:04:50]} 13. Rad1 {[%emt 0:00:30]} c6 {[%emt 0:04:44]} 14. b4 {[%emt 0:03:31]} Qe7 {[%emt 0:07:09]} 15. b5 {[%emt 0:04:23]} Ng5 {[%emt 0:33:58]} 16. Rfe1 {[%emt 0:23:13]} Nxf3+ {[%emt 0:05:32]} 17. Bxf3 {[%emt 0:00:27]} exd4 {[%emt 0:01:00]} 18. Bxd4 {[%emt 0:00:39]} Ne5 {[%emt 0:12:15]} 19. Be2 {[%emt 0:02:38]} Be6 {[%emt 0:02:28]} 20. Bf1 {[%emt 0:09:36]} Bh6 {[%emt 0:17:13]} 21. bxc6 {[%emt 0:10:45]} bxc6 {[%emt 0:00:09]} 22. c5 {[%emt 0:00:34]} dxc5 {[%emt 0:04:37]} 23. Bxe5 {[%emt 0:00:28]} fxe5 {[%emt 0:00:03]} 24. Na4 {[%emt 0:00:34]} Rad8 {[%emt 0:02:59]} 25. Nxc5 {[%emt 0:02:18]} Bg4 {[%emt 0:00:52]} 26. Rxd8 {[%emt 0:04:37]} Rxd8 {[%emt 0:00:48]} 27. Rb1 {[%emt 0:02:28]} Bc8 {[%emt 0:00:51]} 28. Rb8 {[%emt 0:28:55]} Qc7 {[%emt 0:00:43]} 29. Qb3 {[%emt 0:00:00]} Bf8 {[%emt 0:00:26]} 30. Na6 {[%emt 0:00:00]} Bxa6 {[%emt 0:00:30]} 31. Rxd8 {[%emt 0:00:00]} Qxd8 {[%emt 0:00:02]} 32. Bxa6 {[%emt 0:00:00]} Bc5 {[%emt 0:01:02]} 33. Qf7 {[%emt 0:00:00]} Qf8 {[%emt 0:00:21]} 34. Qxf8+ {[%emt 0:00:00]} 1/2-1/2

[Event "4NCL Div 1 2024-25"]
[Site "England"]
[Date "2025.02.15"]
[Round "5.23"]
[White "Fitzsimons, David"]
[Black "Varney, Zoe"]
[Result "1/2-1/2"]
[Annotator "ChessBase"]
[ECO "C54"]
[WhiteElo "2317"]
[BlackElo "1996"]
[PlyCount "138"]
[EventDate "2024.11.23"]
[EventType "team-tourn"]
[EventCountry "ENG"]
[SourceTitle "playchess.com"]
[Source "ChessBase"]
[SourceQuality "1"]
[TimeControl "40/6000+30:3000+30"]

1. e4 {[%emt 0:10:03]} e5 {[%emt 0:10:07]} 2. Bc4 {[%emt 0:00:10]} Nf6 {[%emt 0:00:24]} 3. d3 {[%emt 0:00:08]} Bc5 {[%emt 0:02:33]} 4. Nf3 {[%emt 0:01:02]} Nc6 {[%emt 0:00:32]} 5. c3 {[%emt 0:00:15]} a6 {[%emt 0:01:17]} 6. b4 {[%emt 0:00:36]} Ba7 {[%emt 0:00:34]} 7. O-O {[%emt 0:00:17]} d6 {[%emt 0:01:26]} 8. Nbd2 {[%emt 0:01:09]} O-O {[%emt 0:02:02]} 9. a4 {[%emt 0:00:12]} h6 {[%emt 0:04:06]} 10. h3 {[%emt 0:00:38]} Re8 {[%emt 0:00:29]} 11. Re1 {[%emt 0:00:13]} Be6 {[%emt 0:00:34]} 12. Bxe6 {[%emt 0:00:08]} Rxe6 {[%emt 0:00:05]} 13. Qc2 {[%emt 0:00:15]} Qd7 {[%emt 0:00:18]} 14. Rb1 {[%emt 0:00:16]} Rd8 {[%emt 0:02:02]} 15. b5 {[%emt 0:02:43]} Ne7 {[%emt 0:03:21]} 16. Nc4 {[%emt 0:03:28]} Ng6 {[%emt 0:06:58]} 17. bxa6 {[%emt 0:05:02]} bxa6 {[%emt 0:05:36]} 18. Rb7 {[%emt 0:00:21]} Bc5 {[%emt 0:09:24]} 19. d4 {[%emt 0:02:15]} exd4 {[%emt 0:16:44]} 20. cxd4 {[%emt 0:00:31]} d5 {[%emt 0:03:05]} 21. dxc5 {[%emt 0:09:05]} dxc4 {[%emt 0:00:26]} 22. Rb4 {[%emt 0:02:39]} Rxe4 {[%emt 0:16:13]} 23. Rxe4 {[%emt 0:01:19]} Nxe4 {[%emt 0:00:57]} 24. Rxc4 {[%emt 0:10:09]} Qd1+ {[%emt 0:06:16]} 25. Kh2 {[%emt 0:00:37]} Qxc2 {[%emt 0:05:57]} 26. Rxc2 {[%emt 0:00:05]} f5 {[%emt 0:06:27]} 27. c6 {[%emt 0:03:58]} Kf7 {[%emt 0:03:50]} 28. Bb2 {[%emt 0:00:46]} Rd5 {[%emt 0:00:36]} 29. Nd4 {[%emt 0:01:43]} Ne7 {[%emt 0:01:51]} 30. Re2 {[%emt 0:02:24]} Nc5 {[%emt 0:00:36]} 31. Ba3 {[%emt 0:05:48]} Rxd4 {[%emt 0:00:18]} 32. Bxc5 {[%emt 0:00:12]} Re4 {[%emt 0:00:06]} 33. Rd2 {[%emt 0:01:53]} Re5 {[%emt 0:01:01]} 34. Ba3 {[%emt 0:00:58]} Rd5 {[%emt 0:00:20]} 35. Re2 {[%emt 0:01:05]} Nxc6 {[%emt 0:00:37]} 36. Rc2 {[%emt 0:00:08]} Rd3 {[%emt 0:00:33]} 37. Bc1 {[%emt 0:00:19]} Rd6 {[%emt 0:00:39]} 38. Bf4 {[%emt 0:00:06]} Re6 {[%emt 0:00:20]} 39. Bxc7 {[%emt 0:00:25]} g6 {[%emt 0:00:41]} 40. Rc5 {[%emt 0:00:24]} Ke7 {[%emt 0:00:34]} 41. h4 {[%emt 0:52:07]} Kd7 {[%emt 0:26:38]} 42. Bf4 {[%emt 0:00:00]} Re4 {[%emt 0:01:52]} 43. Rd5+ {[%emt 0:00:00]} Ke7 {[%emt 0:03:46]} 44. g3 {[%emt 0:00:00]} Rxa4 {[%emt 0:04:46]} 45. Bxh6 {[%emt 0:00:00]} Ra2 {[%emt 0:02:35]} 46. Be3 {[%emt 0:00:00]} Ke6 {[%emt 0:00:14]} 47. Rd1 {[%emt 0:00:00]} Ne5 {[%emt 0:00:51]} 48. Bc5 {[%emt 0:00:00]} a5 {[%emt 0:03:57]} 49. Rd6+ {[%emt 0:00:00]} Kf7 {[%emt 0:00:07]} 50. Kg2 {[%emt 0:00:00]} a4 {[%emt 0:03:27]} 51. Bd4 {[%emt 0:00:00]} Ng4 {[%emt 0:00:56]} 52. Rd7+ {[%emt 0:00:00]} Ke6 {[%emt 0:03:59]} 53. Ra7 {[%emt 0:00:00]} Kd5 {[%emt 0:00:10]} 54. Rd7+ {[%emt 0:00:00]} Ke6 {[%emt 0:00:04]} 55. Rg7 {[%emt 0:00:00]} Rd2 {[%emt 0:00:23]} 56. Bc5 {[%emt 0:00:00]} Rc2 {[%emt 0:02:40]} 57. Rxg6+ {[%emt 0:00:00]} Kf7 {[%emt 0:00:28]} 58. Rc6 {[%emt 0:00:00]} a3 {[%emt 0:00:35]} 59. Rc7+ {[%emt 0:00:00]} Kg6 {[%emt 0:00:41]} 60. Rc6+ {[%emt 0:03:23]} Kf7 {[%emt 0:00:44]} 61. Rc7+ {[%emt 0:01:39]} Kg6 {[%emt 0:00:03]} 62. Rc6+ {[%emt 0:00:12]} Kh5 {[%emt 0:01:09]} 63. Ra6 {[%emt 0:02:27]} Rxc5 {[%emt 0:00:06]} 64. Rxa3 {[%emt 0:00:04]} Rc2 {[%emt 0:00:11]} 65. Rf3 {[%emt 0:00:07]} Kg6 {[%emt 0:00:09]} 66. Rf4 {[%emt 0:00:41]} Ne5 {[%emt 0:01:57]} 67. Rd4 {[%emt 0:01:39]} Ng4 {[%emt 0:00:19]} 68. Rf4 {[%emt 0:00:10]} Ne5 {[%emt 0:00:59]} 69. Rd4 {[%emt 0:00:25]} Ng4 {[%emt 0:00:12]} 1/2-1/2

[Event "4NCL Div 1 2024-25"]
[Site "England"]
[Date "2025.02.15"]
[Round "5.24"]
[White "Nelson, Jonathan P"]
[Black "Kalaiyalahan, Akshaya"]
[Result "1-0"]
[Annotator "TA"]
[ECO "B06"]
[WhiteElo "2098"]
[BlackElo "2130"]
[PlyCount "75"]
[EventDate "2024.11.23"]
[EventType "team-tourn"]
[EventCountry "ENG"]
[SourceTitle "playchess.com"]
[Source "ChessBase"]
[SourceQuality "1"]
[TimeControl "40/6000+30:3000+30"]

{[%evp 10,75,44,0,28,6,45,50,128,130,128,118,173,155,151,145,143,118,129,136,134,140,151,140,151,137,181,166,148,135,158,139,168,157,257,286,283,296,287,251,372,386,405,402,400,385,638,567,624,600,547,545,541,515,475,406,619,611,750,725,645,600,556,790,709,654,926,926]} 1. e4 {[%emt 0:10:03]} c5 {[%emt 0:10:05]} 2. c3 {[%emt 0:00:16]} d5 {[%emt 0:00:08]} 3. exd5 {[%emt 0:00:23]} Qxd5 {[%emt 0:00:05]} 4. d4 {[%emt 0:00:17]} g6 {[%emt 0:00:09]} 5. Nf3 {[%emt 0:00:31]} Bg7 {[%emt 0:00:25]} 6. Be3 {[%emt 0:03:29]} Nh6 {[%emt 0:06:56] B06: Modern Defence.} 7. Qb3 {[%emt 0:09:12]} Qxb3 {[%emt 0:04:09]} 8. axb3 {[%emt 0:00:14]} Nf5 $146 {[%emt 0:00:33]} (8... cxd4 $14 9. Bxd4 O-O) ({Predecessor:} 8... cxd4 9. Bxd4 Bxd4 10. Nxd4 O-O 11. g3 Nf5 {½-½ Hresc,V (2385)-Klinger,J (2445) Casino op 1st 1993 (3)}) 9. dxc5 $16 {[%emt 0:02:12]} Nxe3 {[%emt 0:00:12]} 10. fxe3 {[%emt 0:00:05]} Be6 {[%emt 0:02:20]} (10... O-O $16) 11. Bb5+ {[%emt 0:08:19]} Bd7 {[%emt 0:03:23]} 12. Bc4 {[%emt 0:02:23]} O-O {[%emt 0:03:14]} 13. O-O {[%emt 0:00:46]} Nc6 {[%emt 0:03:28]} 14. b4 {[%emt 0:05:16]} a5 {[%emt 0:05:46]} 15. b5 {[%emt 0:02:31]} Ne5 {[%emt 0:00:22]} 16. Nxe5 {[%emt 0:01:38]} Bxe5 {[%emt 0:00:05]} 17. Nd2 {[%emt 0:00:31]} e6 {[%emt 0:02:38]} 18. Ne4 {[%emt 0:06:13]} Rfc8 {[%emt 0:02:25]} 19. Rfd1 {[%emt 0:18:31] White is more active.} Be8 {[%emt 0:00:14]} 20. Ra4 $36 {[%emt 0:00:17][%mdl 2048] Black is under strong pressure.} Kg7 {[%emt 0:02:40]} 21. Rda1 {[%emt 0:03:02]} Bd7 {[%emt 0:14:20]} (21... f5 $16) 22. Rxa5 $18 {[%emt 0:06:53]} Rxa5 {[%emt 0:00:27]} 23. Rxa5 {[%emt 0:00:03]} f5 {[%emt 0:00:48]} 24. Nf2 {[%emt 0:08:14] and Ra7 would now be decisive} Rxc5 {[%emt 0:01:17]} (24... Bb8 {was called for.} 25. b6 h5) 25. Nd3 {[%emt 0:00:16]} Bxh2+ {[%emt 0:04:41]} 26. Kxh2 {[%emt 0:00:09]} Rxc4 {[%emt 0:00:14][%mdl 4096] Endgame KRB-KRN} 27. Ne5 $1 {[%emt 0:00:12][%csl LRc4,LRd7]} Rh4+ {[%emt 0:00:27] [#]} (27... Bxb5 28. Rxb5 Rc7) 28. Kg3 {[%emt 0:00:35]} Re4 {[%emt 0:00:28]} 29. Nxd7 {[%emt 0:00:18]} Rxe3+ {[%emt 0:00:09] KRN-KR} 30. Kf2 {[%emt 0:00:16]} Rd3 {[%emt 0:00:09]} 31. Nc5 {[%emt 0:00:17][%csl LRb7,LRd3,LRe6]} Rd2+ {[%emt 0:00:12]} 32. Kf3 {[%emt 0:00:14]} b6 {[%emt 0:02:26]} (32... Rxb2 $142 33. Nxe6+ (33. Nxb7 Rb3 $18) 33... Kf6) 33. Ra7+ {[%emt 0:00:20] White is clearly winning.} (33. Nxe6+ Kf6 34. Ra6 Kxe6 $11) 33... Kf6 {[%emt 0:00:27]} 34. Nd7+ {[%emt 0:01:14]} Kg5 {[%emt 0:00:05]} 35. c4 {[%emt 0:01:44]} Rxb2 {[%emt 0:00:29]} 36. c5 {[%emt 0:00:26]} bxc5 {[%emt 0:00:36]} 37. b6 {[%emt 0:00:06][%cal Bb5b6,Bb6b7][%mdl 32]} (37. Nxc5 e5 38. Ne6+ (38. Rxh7 Rxb5 39. Rc7 Kh4 $14) 38... Kf6 $18) 37... e5 {[%emt 0:01:52]} 38. b7 {[%emt 0:00:10] Weighted Error Value: White=0.08 (flawless) /Black=0.54  Mistake:       	---       	Black=6      Inaccurate:     	---       	Black=2      OK:         	White=8     	Black=10     Best:        	White=6     	---} ({Less strong is} 38. Nxe5 Rxb6 39. Rxh7 Re6 $18) 1-0